[Event "UKR-ch Semifinal 2019"]
[Site "Omelnyk"]
[Date "2019.10.11"]
[Round "4.1"]
[White "Vysochin, Spartak"]
[Black "Kovchan, Alexander"]
[Result "1/2-1/2"]
[ECO "B22"]
[WhiteElo "2497"]
[BlackElo "2570"]
[Annotator "ChessBase"]
[PlyCount "34"]
[EventDate "2019.10.06"]
[EventType "swiss"]
[EventCountry "UKR"]
[SourceTitle "playchess.com"]
[Source "ChessBase"]
[SourceQuality "1"]
[TimeControl "40/5400+30:1800+30"]

1. e4 c5 2. c3 d5 3. exd5 Qxd5 4. d4 e6 5. Nf3 Nf6 6. Na3 Nc6 7. Be3 Ng4 8. Nb5 Nxe3 9. fxe3 Qd8 10. d5 exd5 11. Qxd5 Be6 12. Qxd8+ Kxd8 13. Ng5 a6 14. Rd1+ Kc8 15. Nxe6 fxe6 16. Nd6+ Bxd6 17. Rxd6 Re8 1/2-1/2

[Event "UKR-ch Semifinal 2019"]
[Site "Omelnyk"]
[Date "2019.10.11"]
[Round "4.2"]
[White "Bernadskiy, Vitaliy"]
[Black "Matviishen, Viktor"]
[Result "1-0"]
[ECO "A11"]
[WhiteElo "2554"]
[BlackElo "2494"]
[Annotator "ChessBase"]
[PlyCount "79"]
[EventDate "2019.10.06"]
[EventType "swiss"]
[EventCountry "UKR"]
[SourceTitle "playchess.com"]
[Source "ChessBase"]
[SourceQuality "1"]
[TimeControl "40/5400+30:1800+30"]

1. c4 c6 2. Nf3 Nf6 3. g3 d5 4. Bg2 g6 5. Qa4 Nbd7 6. cxd5 cxd5 7. Nc3 Bg7 8. O-O O-O 9. d4 Nb6 10. Qb3 Ne4 11. a4 Nxc3 12. bxc3 a5 13. Bf4 Bd7 14. Rfb1 Ra6 15. Bf1 Bc6 16. e4 Nc4 17. Bxc4 dxc4 18. Qc2 e6 19. Qe2 f5 20. Ng5 fxe4 21. Nxe6 Qd5 22. Nc7 Qf7 23. Nxa6 bxa6 24. Rb6 Qd5 25. Rxa6 e3 26. f3 g5 27. Rxc6 Qxc6 28. Bxg5 Rxf3 29. Bxe3 Rf8 30. Qg2 Qxg2+ 31. Kxg2 Rb8 32. Kf3 Rb3 33. Rc1 Kf7 34. Ke4 Ke6 35. d5+ Kd6 36. Bd4 Bxd4 37. Kxd4 Ra3 38. Rf1 Rxa4 39. Rf6+ Ke7 40. Ra6 1-0

[Event "UKR-ch Semifinal 2019"]
[Site "Omelnyk"]
[Date "2019.10.11"]
[Round "4.4"]
[White "Belous, Mikhail"]
[Black "Vetoshko, Volodymyr"]
[Result "1/2-1/2"]
[ECO "D37"]
[WhiteElo "2319"]
[BlackElo "2506"]
[Annotator "ChessBase"]
[PlyCount "30"]
[EventDate "2019.10.06"]
[EventType "swiss"]
[EventCountry "UKR"]
[SourceTitle "playchess.com"]
[Source "ChessBase"]
[SourceQuality "1"]
[TimeControl "40/5400+30:1800+30"]

1. d4 Nf6 2. c4 e6 3. Nf3 d5 4. Nc3 a6 5. c5 b6 6. cxb6 cxb6 7. Bf4 Bd6 8. e3 O-O 9. Bd3 Bb7 10. Ne5 Nc6 11. Nxc6 Bxc6 12. Bxd6 Qxd6 13. O-O Ne4 14. Rc1 f5 15. f3 Nxc3 1/2-1/2

[Event "UKR-ch Semifinal 2019"]
[Site "Omelnyk"]
[Date "2019.10.11"]
[Round "4.5"]
[White "Shalimov, Valery"]
[Black "Golubka, Petro"]
[Result "1/2-1/2"]
[ECO "B06"]
[WhiteElo "2391"]
[BlackElo "2471"]
[Annotator "ChessBase"]
[PlyCount "44"]
[EventDate "2019.10.06"]
[EventType "swiss"]
[EventCountry "UKR"]
[SourceTitle "playchess.com"]
[Source "ChessBase"]
[SourceQuality "1"]
[TimeControl "40/5400+30:1800+30"]

1. d4 g6 2. e4 Bg7 3. Nf3 d6 4. Bc4 e6 5. O-O Ne7 6. Re1 Nd7 7. a4 a5 8. Nc3 O-O 9. Be3 b6 10. Qd2 Nf6 11. Bh6 Bb7 12. Bxg7 Kxg7 13. Rab1 Nfg8 14. Qf4 h6 15. h4 Nf6 16. Qh2 d5 17. exd5 Nfxd5 18. Nxd5 Bxd5 19. Ne5 Bxc4 20. Nxc4 Rc8 21. Qe5+ Kh7 22. g3 h5 1/2-1/2

[Event "UKR-ch Semifinal 2019"]
[Site "Omelnyk"]
[Date "2019.10.11"]
[Round "4.6"]
[White "Mirzoev, Emil"]
[Black "Polivanov, Anatoliy"]
[Result "1/2-1/2"]
[ECO "A40"]
[WhiteElo "2455"]
[BlackElo "2411"]
[Annotator "ChessBase"]
[PlyCount "87"]
[EventDate "2019.10.06"]
[EventType "swiss"]
[EventCountry "UKR"]
[SourceTitle "playchess.com"]
[Source "ChessBase"]
[SourceQuality "1"]
[TimeControl "40/5400+30:1800+30"]

1. d4 e6 2. Nf3 f5 3. g3 Nf6 4. Bg2 g6 5. O-O Bg7 6. c4 O-O 7. Nc3 d6 8. b3 Nc6 9. Bb2 e5 10. dxe5 dxe5 11. e4 Qxd1 12. Raxd1 Nxe4 13. Nxe4 fxe4 14. Nd2 Bg4 15. Rde1 Rad8 16. Nxe4 Nd4 17. Bxd4 exd4 18. h3 Bf5 19. g4 Bxe4 20. Bxe4 d3 21. Rd1 d2 22. Bxb7 Rfe8 23. Bc6 Re2 24. Bf3 Re7 25. Rb1 Bc3 26. b4 Re1 27. Bd1 Rde8 28. c5 Rxf1+ 29. Kxf1 Re1+ 30. Kg2 Kg7 31. a4 g5 32. b5 Bd4 33. c6 Bc3 34. Kg3 Kf6 35. f4 h6 36. f5 Ke5 37. Kf3 Bd4 38. a5 Re3+ 39. Kg2 Re1 40. b6 axb6 41. a6 b5 42. Rxb5+ Kd6 43. Rb1 Ke7 44. Kf3 1/2-1/2

[Event "UKR-ch Semifinal 2019"]
[Site "Omelnyk"]
[Date "2019.10.11"]
[Round "5.6"]
[White "Voitovich, Vladislav"]
[Black "Mirzoev, Emil"]
[Result "0-1"]
[ECO "D87"]
[WhiteElo "2306"]
[BlackElo "2455"]
[Annotator "RC"]
[PlyCount "96"]
[EventDate "2019.10.06"]
[EventType "swiss"]
[EventCountry "UKR"]
[SourceTitle "playchess.com"]
[Source "ChessBase"]
[SourceQuality "1"]
[TimeControl "40/5400+30:1800+30"]

1. d4 Nf6 2. c4 g6 3. Nc3 d5 4. cxd5 Nxd5 5. e4 Nxc3 6. bxc3 Bg7 7. Bc4 O-O 8. Ne2 c5 9. O-O Nc6 10. Be3 Qc7 11. Rc1 Rd8 12. h3 b6 13. f4 e6 14. Qe1 Na5 15. Bd3 Bb7 16. f5 exf5 17. exf5 Re8 18. Bf4 Qe7 19. fxg6 hxg6 20. Bb5 Bc6 21. Bxc6 Nxc6 22. d5 Qxe2 23. Qxe2 Rxe2 24. dxc6 Rc8 25. c7 Be5 26. Bxe5 Rxe5 27. Rcd1 Rxc7 28. Kf2 Rce7 29. Rd2 Rf5+ 30. Kg1 Rxf1+ 31. Kxf1 Re4 32. Kf2 Kg7 33. Kf3 Rc4 34. Rc2 Kf6 35. Ke3 Ke5 36. Kd3 Ra4 37. Re2+ Kd5 38. Rf2 c4+ 39. Ke3 Ra3 40. Rxf7 Rxc3+ 41. Kd2 Ra3 42. g4 Rxa2+ 43. Kc3 Ra3+ 44. Kc2 Rxh3 45. Rg7 b5 46. Rxg6 b4 47. Rg8 Rh2+ 48. Kd1 b3 0-1

[Event "UKR-ch Semifinal 2019"]
[Site "Omelnyk"]
[Date "2019.10.11"]
[Round "6.3"]
[White "Vysochin, Spartak"]
[Black "Vetoshko, Volodymyr"]
[Result "1-0"]
[ECO "C24"]
[WhiteElo "2497"]
[BlackElo "2506"]
[Annotator "RC"]
[PlyCount "67"]
[EventDate "2019.10.06"]
[EventType "swiss"]
[EventCountry "UKR"]
[SourceTitle "playchess.com"]
[Source "ChessBase"]
[SourceQuality "1"]
[TimeControl "40/5400+30:1800+30"]

1. e4 e5 2. Bc4 Nf6 3. d3 Nc6 4. Nc3 Na5 5. Bb3 Nxb3 6. axb3 Be7 7. Nf3 d6 8. d4 exd4 9. Qxd4 a6 10. Bg5 O-O 11. O-O-O Be6 12. e5 dxe5 13. Qxe5 Qc8 14. Qg3 c5 15. Rhe1 b5 16. Bh6 Ng4 17. Bxg7 Kxg7 18. Nd5 Bxd5 19. Rxd5 Ra7 20. h3 c4 21. bxc4 Qxc4 22. Qxg4+ Qxg4 23. hxg4 Bf6 24. g5 Bd8 25. Nd4 Bc7 26. Nf5+ Kg6 27. Ne7+ Kg7 28. Nc6 Bf4+ 29. Kb1 Rc7 30. Nb4 Kg6 31. Nd3 Bxg5 32. Ne5+ Kh6 33. Rh1+ Kg7 34. Nd7 1-0

[Event "UKR-ch Semifinal 2019"]
[Site "Omelnyk"]
[Date "2019.10.11"]
[Round "6.4"]
[White "Shalimov, Valery"]
[Black "Matviishen, Viktor"]
[Result "1-0"]
[ECO "D02"]
[WhiteElo "2391"]
[BlackElo "2494"]
[Annotator "ChessBase"]
[PlyCount "63"]
[EventDate "2019.10.06"]
[EventType "swiss"]
[EventCountry "UKR"]
[SourceTitle "playchess.com"]
[Source "ChessBase"]
[SourceQuality "1"]
[TimeControl "40/5400+30:1800+30"]

1. d4 Nf6 2. Nf3 d5 3. Bf4 e6 4. e3 c5 5. c3 Nc6 6. Nbd2 cxd4 7. exd4 Ne4 8. Be3 Bd6 9. g3 h6 10. Bd3 Nf6 11. O-O O-O 12. Re1 a6 13. a4 Ng4 14. Qe2 Qc7 15. Nh4 f5 16. f4 Nxe3 17. Qxe3 e5 18. Ng6 exd4 19. cxd4 Rf6 20. Qe8+ Kh7 21. Nh4 Nxd4 22. Rac1 Nc6 23. Ndf3 Qf7 24. Nxf5 Bxf5 25. Bxf5+ Rxf5 26. Qxa8 Bxf4 27. gxf4 Rxf4 28. Rxc6 bxc6 29. Ne5 Qf5 30. Qxc6 d4 31. Qd5 Qg5+ 32. Kh1 1-0

[Event "UKR-ch Semifinal 2019"]
[Site "Omelnyk"]
[Date "2019.10.11"]
[Round "6.5"]
[White "Malovanyi, Yulian"]
[Black "Neverov, Valeriy"]
[Result "1/2-1/2"]
[ECO "B23"]
[WhiteElo "2351"]
[BlackElo "2477"]
[Annotator "ChessBase"]
[PlyCount "77"]
[EventDate "2019.10.06"]
[EventType "swiss"]
[EventCountry "UKR"]
[SourceTitle "playchess.com"]
[Source "ChessBase"]
[SourceQuality "1"]
[TimeControl "40/5400+30:1800+30"]

1. e4 c5 2. Nc3 d6 3. Nge2 Nf6 4. g3 g6 5. Bg2 Bg7 6. O-O Nc6 7. d3 Bd7 8. h3 Rb8 9. Nd5 Nxd5 10. exd5 Nd4 11. Re1 O-O 12. Nxd4 cxd4 13. Bg5 Re8 14. Qd2 Rc8 15. Re2 Qb6 16. Rae1 e5 17. dxe6 Rxe6 18. b3 Rc5 19. h4 Rce5 20. Bh3 Rxe2 21. Rxe2 Rxe2 22. Qxe2 Bc6 23. Bg2 h6 24. Bf4 Bxg2 25. Kxg2 Qc6+ 26. Kh2 b5 27. Qd1 Kh7 28. Kg1 h5 29. Kh2 Be5 30. Bxe5 dxe5 31. Qe2 f6 32. Kg1 a5 33. Qe4 Qc7 34. Qd5 b4 35. Qc4 Qd8 36. Qc5 Kg7 37. a3 bxa3 38. Qxa3 Qc7 39. b4 1/2-1/2

[Event "UKR-ch Semifinal 2019"]
[Site "Omelnyk"]
[Date "2019.10.11"]
[Round "6.6"]
[White "Bondar, Dmytro"]
[Black "Golubka, Petro"]
[Result "0-1"]
[ECO "C10"]
[WhiteElo "2281"]
[BlackElo "2471"]
[Annotator "ChessBase"]
[PlyCount "69"]
[EventDate "2019.10.06"]
[EventType "swiss"]
[EventCountry "UKR"]
[SourceTitle "playchess.com"]
[Source "ChessBase"]
[SourceQuality "1"]
[TimeControl "40/5400+30:1800+30"]

1. e4 e6 2. d4 d5 3. Nc3 Nc6 4. Nf3 Nf6 5. e5 Ne4 6. Bb5 Bb4 7. Qd3 Bd7 8. Nd2 f5 9. exf6 Nxf6 10. O-O O-O 11. Nf3 Bd6 12. Bg5 Nb4 13. Qe2 c6 14. Ba4 a5 15. a3 Na6 16. Ne5 Nc7 17. Nb1 Be8 18. c3 c5 19. Bc2 Bb5 20. Bd3 Qe8 21. Bxb5 Nxb5 22. a4 Na7 23. dxc5 Bxe5 24. Qxe5 Ne4 25. Be3 Qe7 26. Qh5 Nc6 27. Nd2 Nxd2 28. Bxd2 Qxc5 29. Rae1 Rae8 30. Re3 Rf7 31. Rh3 g6 32. Rg3 Ne7 33. Be3 Qc6 34. Bd4 Qd6 35. Re1 0-1

[Event "UKR-ch Semifinal 2019"]
[Site "Omelnyk"]
[Date "2019.10.12"]
[Round "7.1"]
[White "Vysochin, Spartak"]
[Black "Bernadskiy, Vitaliy"]
[Result "1/2-1/2"]
[ECO "B18"]
[WhiteElo "2497"]
[BlackElo "2554"]
[Annotator "ChessBase"]
[PlyCount "29"]
[EventDate "2019.10.06"]
[EventType "swiss"]
[EventCountry "UKR"]
[SourceTitle "playchess.com"]
[Source "ChessBase"]
[SourceQuality "1"]
[TimeControl "40/5400+30:1800+30"]

1. e4 c6 2. d4 d5 3. Nd2 dxe4 4. Nxe4 Bf5 5. Ng3 Bg6 6. Nf3 Nd7 7. Bd3 Ngf6 8. O-O e6 9. b3 Bd6 10. c4 O-O 11. Bb2 Qc7 12. Bxg6 hxg6 13. Qe2 Rfe8 14. Rfe1 Rad8 15. Bc3 1/2-1/2

[Event "UKR-ch Semifinal 2019"]
[Site "Omelnyk"]
[Date "2019.10.12"]
[Round "7.3"]
[White "Golubka, Petro"]
[Black "Mirzoev, Emil"]
[Result "1-0"]
[ECO "B01"]
[WhiteElo "2471"]
[BlackElo "2455"]
[Annotator "ChessBase"]
[PlyCount "63"]
[EventDate "2019.10.06"]
[EventType "swiss"]
[EventCountry "UKR"]
[SourceTitle "playchess.com"]
[Source "ChessBase"]
[SourceQuality "1"]
[TimeControl "40/5400+30:1800+30"]

1. e4 d5 2. exd5 Qxd5 3. Nc3 Qa5 4. d4 c6 5. Bc4 Bf5 6. Nf3 e6 7. Bd2 Nf6 8. Nd5 Qd8 9. Nxf6+ gxf6 10. O-O Nd7 11. Re1 Qc7 12. Nh4 Bg6 13. a4 O-O-O 14. a5 a6 15. b4 f5 16. g3 Be7 17. Nf3 Nf6 18. Bf4 Bd6 19. Bg5 Be7 20. Ne5 Nd5 21. Bxe7 Qxe7 22. Bxd5 cxd5 23. b5 f6 24. Nd3 Rd6 25. bxa6 bxa6 26. Rb1 Be8 27. Qf3 Bb5 28. Nc5 Re8 29. c4 Bxc4 30. Rec1 Qa7 31. Rb7 Qa8 32. Qh5 1-0

[Event "UKR-ch Semifinal 2019"]
[Site "Omelnyk"]
[Date "2019.10.12"]
[Round "7.4"]
[White "Polivanov, Anatoliy"]
[Black "Baidetskyi, Valentin"]
[Result "1/2-1/2"]
[ECO "B10"]
[WhiteElo "2411"]
[BlackElo "2412"]
[Annotator "NA"]
[PlyCount "42"]
[EventDate "2019.10.06"]
[EventType "swiss"]
[EventCountry "UKR"]
[SourceTitle "playchess.com"]
[Source "ChessBase"]
[SourceQuality "1"]
[TimeControl "40/5400+30:1800+30"]

1. e4 c6 2. Be2 d5 3. e5 Bf5 4. Nf3 e6 5. d4 c5 6. O-O Nc6 7. c3 Bg6 8. dxc5 Bxc5 9. b4 Bb6 10. b5 Na5 11. Ba3 Rc8 12. Bb4 Ne7 13. Nbd2 O-O 14. Rc1 Re8 15. Nd4 Nc4 16. Nxc4 dxc4 17. Bd6 Nd5 18. Qd2 Qh4 19. f4 Bh5 20. Bxh5 Qxh5 21. Rf3 Qf5 1/2-1/2

[Event "UKR-ch Semifinal 2019"]
[Site "Omelnyk"]
[Date "2019.10.12"]
[Round "7.6"]
[White "Peng, Li Min"]
[Black "Alexikov, Alexander"]
[Result "1-0"]
[ECO "A43"]
[WhiteElo "2454"]
[BlackElo "2242"]
[Annotator "ChessBase"]
[PlyCount "93"]
[EventDate "2019.10.06"]
[EventType "swiss"]
[EventCountry "UKR"]
[SourceTitle "playchess.com"]
[Source "ChessBase"]
[SourceQuality "1"]
[TimeControl "40/5400+30:1800+30"]

1. d4 Nf6 2. c4 c5 3. d5 d6 4. Nc3 g6 5. e4 Bg7 6. Nf3 O-O 7. h3 e6 8. Bd3 Na6 9. O-O e5 10. Bg5 h6 11. Be3 Nh5 12. Qd2 g5 13. Rfe1 Nf4 14. Nh2 Nc7 15. Nf1 f6 16. Ng3 Rf7 17. Nce2 Bf8 18. Nc1 Ne8 19. Qd1 Nxd3 20. Qxd3 Ng7 21. Nf5 Nxf5 22. exf5 b5 23. Ne2 bxc4 24. Qc2 Rb8 25. Rad1 h5 26. Bc1 Rh7 27. g4 Be7 28. Kg2 Kg7 29. Rh1 Qa5 30. h4 gxh4 31. g5 Rh8 32. g6 Kg8 33. Rxh4 Qxa2 34. Nc3 Qa5 35. Rdh1 Bf8 36. Rxh5 Rxh5 37. Rxh5 Bg7 38. Qe4 Qc7 39. Qh4 Rb6 40. Ne4 Qe7 41. Rh7 Bxf5 42. Rxg7+ Qxg7 43. Nxf6+ Kf8 44. Bh6 Bxg6 45. Nd7+ Kg8 46. Bxg7 Kxg7 47. Qf6+ 1-0

[Event "UKR-ch Semifinal 2019"]
[Site "Omelnyk"]
[Date "2019.10.13"]
[Round "8.1"]
[White "Bernadskiy, Vitaliy"]
[Black "Golubka, Petro"]
[Result "1/2-1/2"]
[ECO "A20"]
[WhiteElo "2554"]
[BlackElo "2471"]
[Annotator "ChessBase"]
[PlyCount "48"]
[EventDate "2019.10.06"]
[EventType "swiss"]
[EventCountry "UKR"]
[SourceTitle "playchess.com"]
[Source "ChessBase"]
[SourceQuality "1"]
[TimeControl "40/5400+30:1800+30"]

1. c4 {[%emt 0:00:00]} e5 {[%emt 0:03:18]} 2. g3 {[%emt 0:00:43]} Nf6 {[%emt 0:00:58]} 3. Bg2 {[%emt 0:00:09]} Nc6 {[%emt 0:01:32]} 4. Nc3 {[%emt 0:00:55]} Bb4 {[%emt 0:00:09]} 5. e4 {[%emt 0:03:05]} Bxc3 {[%emt 0:04:51]} 6. dxc3 {[%emt 0:00:06]} O-O {[%emt 0:00:13]} 7. Nh3 {[%emt 0:02:36]} d6 {[%emt 0:01:18]} 8. f3 {[%emt 0:00:28]} a5 {[%emt 0:06:38]} 9. a4 {[%emt 0:02:45]} Nd7 {[%emt 0:00:38]} 10. O-O {[%emt 0:01:27]} Nc5 {[%emt 0:00:07]} 11. Be3 {[%emt 0:00:38]} Be6 {[%emt 0:01:09]} 12. b3 {[%emt 0:00:29]} Qe7 {[%emt 0:07:59]} 13. Nf2 {[%emt 0:01:45]} Rad8 {[%emt 0:04:00]} 14. Ra2 {[%emt 0:11:31]} f5 {[%emt 0:11:41]} 15. exf5 {[%emt 0:01:29]} Bxf5 {[%emt 0:00:05]} 16. Bxc5 {[%emt 0:04:42]} dxc5 {[%emt 0:00:03]} 17. Qc1 {[%emt 0:00:06]} Qf6 {[%emt 0:11:37]} 18. Qe3 {[%emt 0:01:44]} b6 {[%emt 0:00:57]} 19. f4 {[%emt 0:12:46]} Qh6 {[%emt 0:08:15]} 20. Bd5+ {[%emt 0:06:38]} Kh8 {[%emt 0:01:21]} 21. Re2 {[%emt 0:01:15]} exf4 {[%emt 0:04:47]} 22. Qxf4 {[%emt 0:00:08]} Qxf4 {[%emt 0:00:56]} 23. gxf4 {[%emt 0:00:04]} Na7 {[%emt 0:02:09]} 24. Re7 {[%emt 0:06:46]} Rd7 {[%emt 0:00:31]} 1/2-1/2

[Event "UKR-ch Semifinal 2019"]
[Site "Omelnyk"]
[Date "2019.10.13"]
[Round "8.2"]
[White "Peng, Li Min"]
[Black "Kovchan, Alexander"]
[Result "1/2-1/2"]
[ECO "A05"]
[WhiteElo "2454"]
[BlackElo "2570"]
[Annotator "ChessBase"]
[PlyCount "20"]
[EventDate "2019.10.06"]
[EventType "swiss"]
[EventCountry "UKR"]
[SourceTitle "playchess.com"]
[Source "ChessBase"]
[SourceQuality "1"]
[TimeControl "40/5400+30:1800+30"]

1. Nf3 {[%emt 0:03:20]} Nf6 {[%emt 0:00:00]} 2. c4 {[%emt 0:00:09]} c5 {[%emt 0:00:11]} 3. b3 {[%emt 0:00:11]} g6 {[%emt 0:00:19]} 4. Bb2 {[%emt 0:00:09]} Bg7 {[%emt 0:00:09]} 5. g3 {[%emt 0:00:12]} O-O {[%emt 0:00:28]} 6. Bg2 {[%emt 0:00:09]} Nc6 {[%emt 0:00:29]} 7. O-O {[%emt 0:00:08]} d6 {[%emt 0:01:31]} 8. d4 {[%emt 0:00:06]} cxd4 {[%emt 0:00:23]} 9. Nxd4 {[%emt 0:00:04]} Bd7 {[%emt 0:00:18]} 10. Nc3 {[%emt 0:00:06]} a6 {[%emt 0:01:20]} 1/2-1/2

[Event "UKR-ch Semifinal 2019"]
[Site "Omelnyk"]
[Date "2019.10.13"]
[Round "8.3"]
[White "Baidetskyi, Valentin"]
[Black "Vysochin, Spartak"]
[Result "0-1"]
[ECO "B10"]
[WhiteElo "2412"]
[BlackElo "2497"]
[Annotator "ChessBase"]
[PlyCount "154"]
[EventDate "2019.10.06"]
[EventType "swiss"]
[EventCountry "UKR"]
[SourceTitle "playchess.com"]
[Source "ChessBase"]
[SourceQuality "1"]
[TimeControl "40/5400+30:1800+30"]

1. e4 {[%emt 0:00:00]} c6 {[%emt 0:00:00]} 2. Nc3 {[%emt 0:00:00]} d5 {[%emt 0:00:00]} 3. Nf3 {[%emt 0:00:00]} Nf6 {[%emt 0:04:16]} 4. e5 {[%emt 0:00:21]} Ne4 {[%emt 0:00:21]} 5. Ne2 {[%emt 0:00:08]} Qb6 {[%emt 0:00:12]} 6. d4 {[%emt 0:00:05]} e6 {[%emt 0:00:20]} 7. Ng3 {[%emt 0:00:13]} Nxg3 {[%emt 0:03:12]} 8. fxg3 {[%emt 0:00:24]} c5 {[%emt 0:00:34]} 9. Bd3 {[%emt 0:00:22]} Nc6 {[%emt 0:01:44]} 10. O-O {[%emt 0:00:44]} cxd4 {[%emt 0:04:20]} 11. a3 {[%emt 0:00:09]} a5 {[%emt 0:01:14]} 12. Qe2 {[%emt 0:01:30]} h6 {[%emt 0:07:13]} 13. g4 {[%emt 0:14:40]} g6 {[%emt 0:05:06]} 14. Bd2 {[%emt 0:06:34]} Bd7 {[%emt 0:04:15]} 15. Kh1 {[%emt 0:07:03]} Bg7 {[%emt 0:04:39]} 16. Qf2 {[%emt 0:07:45]} Rf8 {[%emt 0:09:27]} 17. b4 {[%emt 0:02:36]} g5 {[%emt 0:04:42]} 18. bxa5 {[%emt 0:05:12]} Qc7 {[%emt 0:01:18]} 19. Bb4 {[%emt 0:00:23]} Nxb4 {[%emt 0:00:16]} 20. axb4 {[%emt 0:00:01]} Qc3 {[%emt 0:04:55]} 21. Rab1 {[%emt 0:08:16]} f6 {[%emt 0:01:18]} 22. exf6 {[%emt 0:17:28]} Rxf6 {[%emt 0:00:44]} 23. Qg3 {[%emt 0:00:07]} Rf4 {[%emt 0:01:20]} 24. Rfe1 {[%emt 0:09:15]} O-O-O {[%emt 0:10:51]} 25. Ne5 {[%emt 0:03:27]} Bxe5 {[%emt 0:04:44]} 26. Rxe5 {[%emt 0:00:03]} Rdf8 {[%emt 0:01:30]} 27. Kg1 {[%emt 0:06:21]} Kc7 {[%emt 0:11:57]} 28. h4 {[%emt 0:06:39]} Kd6 {[%emt 0:02:26]} 29. Rbe1 {[%emt 0:01:04]} Qxb4 {[%emt 0:02:03]} 30. hxg5 {[%emt 0:00:06]} hxg5 {[%emt 0:00:03]} 31. Rxg5 {[%emt 0:00:23]} Qd2 {[%emt 0:03:27]} 32. Rge5 {[%emt 0:01:11]} Qf2+ {[%emt 0:03:16]} 33. Qxf2 {[%emt 0:00:01]} Rxf2 {[%emt 0:00:06]} 34. g5 {[%emt 0:00:27]} R2f4 {[%emt 0:00:52]} 35. g3 {[%emt 0:03:13]} Rf3 {[%emt 0:02:03]} 36. Kg2 {[%emt 0:00:08]} Re3 {[%emt 0:00:29]} 37. R5xe3 {[%emt 0:00:10]} dxe3 {[%emt 0:00:06]} 38. Rxe3 {[%emt 0:00:13]} e5 {[%emt 0:00:04]} 39. c3 {[%emt 0:02:08]} Rg8 {[%emt 0:01:37]} 40. a6 {[%emt 0:00:00]} bxa6 {[%emt 0:00:00]} 41. Bxa6 {[%emt 0:00:48]} Rxg5 {[%emt 0:02:30]} 42. Kf2 {[%emt 0:03:56]} Rh5 {[%emt 0:02:10]} 43. Be2 {[%emt 0:01:11]} Rh2+ {[%emt 0:00:30]} 44. Kg1 {[%emt 0:00:30]} Rh8 {[%emt 0:00:30]} 45. Kf2 {[%emt 0:00:30]} Rg8 {[%emt 0:01:59]} 46. Rd3 {[%emt 0:05:50]} Bf5 {[%emt 0:03:18]} 47. Rf3 {[%emt 0:00:52]} Ke6 {[%emt 0:00:30]} 48. Re3 {[%emt 0:00:30]} e4 {[%emt 0:00:47]} 49. g4 {[%emt 0:03:52]} Bxg4 {[%emt 0:00:44]} 50. c4 {[%emt 0:00:30]} Rf8+ {[%emt 0:02:11]} 51. Ke1 {[%emt 0:00:30]} Bf5 {[%emt 0:00:30]} 52. cxd5+ {[%emt 0:00:30]} Kxd5 {[%emt 0:00:30]} 53. Ra3 {[%emt 0:00:30]} Ke5 {[%emt 0:00:30]} 54. Kf2 {[%emt 0:06:37]} Kf4 {[%emt 0:00:30]} 55. Ra4 {[%emt 0:01:27]} Rb8 {[%emt 0:00:53]} 56. Ke1 {[%emt 0:00:45]} Rb1+ {[%emt 0:00:30]} 57. Kf2 {[%emt 0:00:30]} Rb2 {[%emt 0:00:30]} 58. Ke1 {[%emt 0:00:30]} Bh3 {[%emt 0:01:18]} 59. Ra3 {[%emt 0:07:49]} Bg2 {[%emt 0:00:42]} 60. Rc3 {[%emt 0:00:30]} e3 {[%emt 0:02:46]} 61. Rc4+ {[%emt 0:00:38]} Ke5 {[%emt 0:00:30]} 62. Rc1 {[%emt 0:00:30]} Be4 {[%emt 0:03:18]} 63. Rc5+ {[%emt 0:01:02]} Kd4 {[%emt 0:00:56]} 64. Rc4+ {[%emt 0:00:30]} Kd5 {[%emt 0:00:30]} 65. Rc1 {[%emt 0:00:44]} Bc2 {[%emt 0:00:30]} 66. Bf1 {[%emt 0:00:34]} Ke4 {[%emt 0:01:10]} 67. Ra1 {[%emt 0:00:30]} Kf3 {[%emt 0:00:30]} 68. Be2+ {[%emt 0:00:30]} Kg3 {[%emt 0:00:30]} 69. Kf1 {[%emt 0:00:58]} Be4 {[%emt 0:00:30]} 70. Ke1 {[%emt 0:00:30]} Bf3 {[%emt 0:00:43]} 71. Bxf3 {[%emt 0:01:10]} Kxf3 {[%emt 0:00:30]} 72. Kf1 {[%emt 0:00:30]} Rh2 {[%emt 0:00:30]} 73. Kg1 {[%emt 0:00:30]} Rg2+ {[%emt 0:00:30]} 74. Kh1 {[%emt 0:00:30]} Rg4 {[%emt 0:00:45]} 75. Rf1+ {[%emt 0:00:36]} Ke4 {[%emt 0:00:30]} 76. Rf8 {[%emt 0:00:30]} e2 {[%emt 0:00:30]} 77. Re8+ {[%emt 0:00:30]} Kd3 {[%emt 0:00:30]} 0-1

[Event "UKR-ch Semifinal 2019"]
[Site "Omelnyk"]
[Date "2019.10.13"]
[Round "8.4"]
[White "Shalimov, Valery"]
[Black "Frolov, Artur"]
[Result "1/2-1/2"]
[ECO "A48"]
[WhiteElo "2391"]
[BlackElo "2423"]
[Annotator "NA"]
[PlyCount "43"]
[EventDate "2019.10.06"]
[EventType "swiss"]
[EventCountry "UKR"]
[SourceTitle "playchess.com"]
[Source "ChessBase"]
[SourceQuality "1"]
[TimeControl "40/5400+30:1800+30"]

1. d4 {[%emt 0:00:00]} Nf6 {[%emt 0:00:05]} 2. Nf3 {[%emt 0:00:00]} g6 {[%emt 0:00:10]} 3. Bg5 {[%emt 0:00:06]} Bg7 {[%emt 0:01:15]} 4. Nbd2 {[%emt 0:00:33]} c5 {[%emt 0:02:50]} 5. Bxf6 {[%emt 0:00:18]} Bxf6 {[%emt 0:00:49]} 6. Ne4 {[%emt 0:00:02]} Bxd4 {[%emt 0:01:11]} 7. Nxd4 {[%emt 0:00:20]} cxd4 {[%emt 0:00:04]} 8. Qxd4 {[%emt 0:00:03]} O-O {[%emt 0:08:21]} 9. c4 {[%emt 0:02:38]} Qa5+ {[%emt 0:02:21]} 10. Qd2 {[%emt 0:01:22]} Qxd2+ {[%emt 0:00:15]} 11. Kxd2 {[%emt 0:00:57]} Nc6 {[%emt 0:00:06]} 12. e3 {[%emt 0:02:15]} d6 {[%emt 0:02:12]} 13. Be2 {[%emt 0:01:07]} f6 {[%emt 0:03:42]} 14. Nc3 {[%emt 0:03:19]} Be6 {[%emt 0:00:09]} 15. Nd5 {[%emt 0:00:28]} Rfc8 {[%emt 0:02:29]} 16. Rhc1 {[%emt 0:00:23]} Kf7 {[%emt 0:01:02]} 17. Nf4 {[%emt 0:06:01]} Bd7 {[%emt 0:00:49]} 18. c5 {[%emt 0:01:41]} dxc5 {[%emt 0:06:17]} 19. Rxc5 {[%emt 0:00:27]} Ne5 {[%emt 0:02:44]} 20. Rac1 {[%emt 0:03:40]} Rxc5 {[%emt 0:01:15]} 21. Rxc5 {[%emt 0:00:44]} Rc8 {[%emt 0:00:17]} 22. Rxc8 {[%emt 0:01:16]} 1/2-1/2